[Event "27th CRO-chT Women 2018"]
[Site "Biograd"]
[Date "2018.09.09"]
[Round "3.2"]
[White "Spiranec, Noemi"]
[Black "Sulc, Gordana"]
[Result "1-0"]
[ECO "E11"]
[WhiteElo "2035"]
[BlackElo "1866"]
[Annotator "NA RC"]
[PlyCount "111"]
[EventDate "2018.09.08"]
[EventType "team-tourn"]
[EventCountry "CRO"]
[SourceTitle "playchess.com"]
[Source "ChessBase"]
[SourceQuality "1"]
[TimeControl "40/5400+30:1800+30"]

1. d4 {[%emt 0:00:30]} Nf6 {[%emt 0:00:30]} 2. c4 {[%emt 0:00:00]} e6 {[%emt 0:00:00]} 3. g3 {[%emt 0:00:00]} Bb4+ {[%emt 0:00:00]} 4. Bd2 {[%emt 0:00:00]} Be7 {[%emt 0:00:30]} 5. Bg2 {[%emt 0:00:00]} d5 {[%emt 0:01:30]} 6. Nf3 {[%emt 0:00:30]} O-O {[%emt 0:05:30] LiveBook: 3609 Games} 7. O-O {[%emt 0:00:00]} c6 {[%emt 0:01:30]} 8. Qc2 {[%emt 0:00:00]} dxc4 {[%emt 0:02:30] E11: Bogo-Indian} (8... Nbd7 9. a4 a5 10. Na3 Ne4 11. Be3 Bd6 12. Ne1 f5 13. Nd3 Qe7 14. Rfc1 Kh8 15. Qb3 Bb8 16. Bf4 Ba7 {½-½ (53) Cheparinov,I (2712)-Inarkiev,E (2684) Ankara 2018}) 9. Qxc4 {[%emt 0:00:30]} b5 {[%emt 0:00:30]} 10. Qc2 {[%emt 0:01:30]} Bb7 {[%emt 0:02:30]} 11. Nc3 $146 {[%emt 0:07:30]} ({Predecessor:} 11. e3 Na6 12. Ne5 Rc8 13. Nd3 Qb6 14. b4 e5 15. dxe5 {½-½ (38) Barrish,D (1766)-Steiner,B (2173) Tabor 2012}) 11... a6 {[%emt 0:00:30]} 12. Ne4 {[%emt 0:10:30]} Nxe4 {[%emt 0:09:30]} 13. Qxe4 {[%emt 0:00:30]} Nd7 {[%emt 0:04:30]} 14. Rac1 {[%emt 0:06:30]} Rc8 {[%emt 0:00:30]} 15. b4 {[%emt 0:01:30]} Re8 {[%emt 0:10:30]} 16. Rfd1 {[%emt 0:03:30]} Nf6 {[%emt 0:02:30]} 17. Qb1 {[%emt 0:00:30]} Nd5 {[%emt 0:03:30]} 18. Ne5 {[%emt 0:05:30]} f6 {[%emt 0:05:30]} 19. Nd3 {[%emt 0:02:30]} Bf8 {[%emt 0:09:30]} 20. e4 {[%emt 0:04:30]} Nb6 {[%emt 0:01:30]} 21. Bc3 {[%emt 0:00:30]} Nc4 {[%emt 0:06:30]} 22. Nb2 {[%emt 0:06:30]} Nb6 {[%emt 0:02:30]} 23. Qc2 {[%emt 0:02:30]} Rc7 {[%emt 0:03:30]} 24. a4 {[%emt 0:01:30]} Rd7 {[%emt 0:07:58]} 25. a5 {[%emt 0:00:00]} Nc8 {[%emt 0:00:22]} 26. Qb3 {[%emt 0:06:00]} Kh8 {[%emt 0:04:22]} 27. Bh3 {[%emt 0:02:30]} Qe7 {[%emt 0:02:16]} (27... Nd6 $16 {ist eine bessere Verteidigung.}) 28. Nd3 {[%emt 0:00:30]} Qf7 {[%emt 0:00:21]} 29. Nf4 {[%emt 0:05:30]} Rde7 {[%emt 0:00:26]} 30. Bg2 {[%emt 0:01:30]} e5 {[%emt 0:02:26]} 31. Qxf7 {[%emt 0:00:30]} Rxf7 {[%emt 0:00:06]} 32. Nd3 {[%emt 0:01:30]} exd4 {[%emt 0:06:37]} 33. Bxd4 {[%emt 0:00:30]} Rd8 {[%emt 0:05:00]} (33... Nd6 $16 34. e5 Nf5) 34. Nc5 {[%emt 0:01:30]} Bxc5 {[%emt 0:00:12]} 35. Bxc5 {[%emt 0:00:30]} Rfd7 {[%emt 0:00:24]} 36. Rxd7 {[%emt 0:03:30]} Rxd7 {[%emt 0:00:01]} 37. Bh3 {[%emt 0:00:30]} Rd8 {[%emt 0:00:12]} 38. Kf1 {[%emt 0:04:30]} g6 {[%emt 0:00:17]} 39. Ke2 {[%emt 0:01:30]} Kg7 {[%emt 0:00:41]} 40. Rc3 {[%emt 0:00:00]} Kf7 {[%emt 0:00:00]} 41. Rd3 {[%emt 0:03:00]} Rxd3 {[%emt 0:09:19]} 42. Kxd3 {[%emt 0:00:30]} Ne7 {[%emt 0:02:30]} 43. Bxe7 {[%emt 0:00:30]} Kxe7 {[%emt 0:00:00]} 44. Kd4 {[%emt 0:00:30]} Kd6 {[%emt 0:02:00]} 45. f4 {[%emt 0:00:30]} c5+ {[%emt 0:04:01]} 46. bxc5+ {[%emt 0:00:00]} Kc6 $2 {[%emt 0:00:46]} (46... Ke7 {was necessary.} 47. c6 Bxc6) 47. Be6 {[%emt 0:00:00]} Kc7 {[%emt 0:00:38]} 48. g4 {[%emt 0:05:30]} h6 {[%emt 0:05:20]} 49. e5 {[%emt 0:03:30]} fxe5+ {[%emt 0:00:52]} 50. Kxe5 {[%emt 0:00:00]} Bf3 {[%emt 0:00:23]} 51. f5 {[%emt 0:00:00]} gxf5 {[%emt 0:06:44]} 52. gxf5 {[%emt 0:00:30]} Kc6 {[%emt 0:00:22]} 53. Kd4 {[%emt 0:00:30]} Kc7 {[%emt 0:03:48]} 54. f6 {[%emt 0:02:30]} Kd8 {[%emt 0:00:30]} 55. Bc8 {[%emt 0:01:30]} b4 {[%emt 0:02:17]} 56. Bxa6 $18 {[%emt 0:00:30]} 1-0

[Event "27th CRO-chT Women 2018"]
[Site "Biograd"]
[Date "2018.09.09"]
[Round "3.3"]
[White "Mican, Karmela"]
[Black "Dejanovic, Tereza"]
[Result "0-1"]
[ECO "B84"]
[WhiteElo "1890"]
[BlackElo "1815"]
[Annotator "NA RC"]
[PlyCount "100"]
[EventDate "2018.09.08"]
[EventType "team-tourn"]
[EventCountry "CRO"]
[SourceTitle "playchess.com"]
[Source "ChessBase"]
[SourceQuality "1"]
[TimeControl "40/5400+30:1800+30"]

1. e4 {[%emt 0:00:30]} c5 {[%emt 0:00:30]} 2. Nf3 {[%emt 0:00:00]} d6 {[%emt 0:00:00]} 3. d4 {[%emt 0:00:00]} cxd4 {[%emt 0:00:00]} 4. Nxd4 {[%emt 0:00:30]} Nf6 {[%emt 0:00:30]} 5. Nc3 {[%emt 0:00:30]} a6 {[%emt 0:00:00]} 6. Be3 {[%emt 0:00:30]} e6 {[%emt 0:00:00]} 7. Be2 {[%emt 0:01:30]} Be7 {[%emt 0:00:30]} 8. O-O {[%emt 0:01:30]} Qc7 {[%emt 0:01:30]} 9. f4 {[%emt 0:02:30]} O-O {[%emt 0:00:00]} 10. Kh1 {[%emt 0:01:30]} Nbd7 {[%emt 0:02:00] LiveBook: 14 Games} 11. Bf3 {[%emt 0:05:30]} Rb8 {[%emt 0:03:30]} 12. a4 {[%emt 0:02:30]} Nc5 {[%emt 0:03:30] B84: Sicilian Scheveningen: 6 Be2 a6, lines without early Be3} (12... b6 13. Qe2 Bb7 14. Rae1 Rfe8 15. Bc1 Bf8 16. e5 Bxf3 17. Qxf3 dxe5 18. fxe5 Nxe5 19. Qg3 Nfd7 20. Bf4 f6 21. Nf3 b5 22. axb5 axb5 23. Nxe5 Nxe5 24. Rxe5 fxe5 25. Bxe5 Qc4 26. Rxf8+ {1-0 (26) Savickas,A (2358)-Gundavaa,B (2458) Beijing 2008}) 13. Qe1 {[%emt 0:04:30]} e5 $146 {[%emt 0:03:30]} ({Predecessor:} 13... Re8 14. Nde2 b6 15. g4 Bb7 16. Ng3 d5 17. e5 Nfe4 18. g5 {1-0 (56) Mohammad,M (2225)-Rahman,S (2247) Dhaka 2007}) 14. Nde2 {[%emt 0:11:30]} b6 {[%emt 0:05:30]} 15. Ng3 {[%emt 0:02:30]} exf4 {[%emt 0:12:30]} 16. Bxf4 {[%emt 0:01:30]} Ne6 {[%emt 0:00:30]} 17. Be3 {[%emt 0:00:30]} g6 {[%emt 0:04:30]} 18. Qd2 {[%emt 0:06:30]} Bb7 {[%emt 0:01:30]} 19. Nd5 {[%emt 0:03:30]} Bxd5 {[%emt 0:07:30]} 20. exd5 {[%emt 0:00:30]} Nc5 {[%emt 0:01:30]} 21. Bd4 {[%emt 0:04:30]} Nfd7 {[%emt 0:08:30]} (21... Qd8 $16) 22. b4 {[%emt 0:08:30]} Nb7 {[%emt 0:00:30]} 23. Be2 {[%emt 0:01:30]} a5 {[%emt 0:01:30]} 24. c3 {[%emt 0:01:30]} ({White should play} 24. Qe3 $18 Ne5 25. Bxb6 Qxc2 26. bxa5) 24... f5 {[%emt 0:02:30]} 25. Qe3 {[%emt 0:09:30]} Bf6 {[%emt 0:03:30]} 26. Bxf6 {[%emt 0:04:30]} Nxf6 {[%emt 0:00:30]} 27. Qd4 {[%emt 0:00:30]} Rbe8 {[%emt 0:02:30]} 28. Bb5 {[%emt 0:03:30]} Re5 {[%emt 0:01:30]} 29. Rae1 {[%emt 0:04:26]} Rc8 {[%emt 0:02:30]} 30. c4 $2 {[%emt 0:06:12]} (30. Re3 $11 {und Weiss ist OK.}) 30... axb4 {[%emt 0:02:30]} 31. Qb2 {[%emt 0:04:01]} Nc5 {[%emt 0:11:53]} 32. Rxe5 {[%emt 0:01:20]} dxe5 {[%emt 0:00:03]} 33. Qxb4 {[%emt 0:00:21]} e4 {[%emt 0:03:55]} 34. Qc3 {[%emt 0:01:36]} Qd6 {[%emt 0:01:15]} 35. Ne2 {[%emt 0:01:02]} Nd3 {[%emt 0:05:04]} 36. Qd4 {[%emt 0:01:11]} Ng4 {[%emt 0:00:50]} 37. g3 {[%emt 0:02:07]} Nge5 {[%emt 0:06:00]} 38. Nf4 {[%emt 0:00:44]} Nxf4 {[%emt 0:00:45]} 39. Rxf4 {[%emt 0:02:21]} Nf3 {[%emt 0:04:38]} 40. Qe3 {[%emt 0:00:00]} Rf8 {[%emt 0:00:00]} 41. Kg2 {[%emt 0:10:09]} Rf7 {[%emt 0:11:07]} 42. Be8 {[%emt 0:03:35]} Rf8 {[%emt 0:01:37]} 43. Bb5 {[%emt 0:02:14]} g5 {[%emt 0:01:39]} 44. Rxf3 {[%emt 0:00:10]} exf3+ {[%emt 0:00:03]} 45. Qxf3 {[%emt 0:00:18]} (45. Kxf3 $17 Qf6 46. c5 bxc5 47. a5) 45... Qe5 {[%emt 0:01:14]} 46. Qh5 {[%emt 0:02:14]} f4 {[%emt 0:02:45]} 47. gxf4 {[%emt 0:02:19]} Rxf4 {[%emt 0:00:19]} 48. Bd7 $2 {[%emt 0:06:25]} (48. Qe8+ $19 Qxe8 49. Bxe8) 48... Qb2+ {[%emt 0:01:11]} 49. Kg1 {[%emt 0:00:35]} Qf2+ {[%emt 0:00:14]} 50. Kh1 {[%emt 0:00:13]} Qf1# {[%emt 0:00:04]} 0-1

[Event "27th CRO-chT Women 2018"]
[Site "Biograd"]
[Date "2018.09.09"]
[Round "3.4"]
[White "Turk, Vesna"]
[Black "Lijic, Kristina"]
[Result "1/2-1/2"]
[ECO "D30"]
[WhiteElo "1728"]
[BlackElo "1715"]
[Annotator "NA RC"]
[PlyCount "130"]
[EventDate "2018.09.08"]
[EventType "team-tourn"]
[EventCountry "CRO"]
[SourceTitle "playchess.com"]
[Source "ChessBase"]
[SourceQuality "1"]
[TimeControl "40/5400+30:1800+30"]

1. d4 {[%emt 0:00:30]} d5 {[%emt 0:00:30]} 2. Nf3 {[%emt 0:00:00]} Nf6 {[%emt 0:00:30]} 3. Bg5 {[%emt 0:00:00]} e6 {[%emt 0:01:30]} 4. e3 {[%emt 0:00:30]} Be7 {[%emt 0:00:30]} 5. c4 {[%emt 0:01:30]} c6 {[%emt 0:05:30]} 6. Nbd2 {[%emt 0:01:30]} b6 {[%emt 0:06:30]} 7. Be2 {[%emt 0:02:30]} Bb7 {[%emt 0:01:30]} 8. O-O {[%emt 0:00:30]} O-O {[%emt 0:00:30]} 9. a3 {[%emt 0:01:30]} c5 {[%emt 0:02:30]} 10. Rc1 {[%emt 0:07:30]} Nbd7 {[%emt 0:03:30]} 11. Nb1 {[%emt 0:13:30]} Ne4 {[%emt 0:07:30]} 12. Bf4 {[%emt 0:01:30]} Bd6 {[%emt 0:00:30]} 13. Bxd6 {[%emt 0:00:30]} Nxd6 {[%emt 0:00:30]} 14. cxd5 {[%emt 0:01:30]} Bxd5 {[%emt 0:03:30]} 15. Nc3 {[%emt 0:01:30]} Bb7 {[%emt 0:01:30]} 16. Na4 {[%emt 0:02:30]} Rc8 {[%emt 0:11:30]} 17. dxc5 {[%emt 0:03:30]} Nxc5 {[%emt 0:00:30]} 18. Nxc5 {[%emt 0:01:30]} bxc5 {[%emt 0:00:30]} 19. Nd2 {[%emt 0:10:30]} Bd5 {[%emt 0:05:30]} 20. Qc2 {[%emt 0:01:30]} Qb6 {[%emt 0:06:30]} 21. e4 {[%emt 0:01:30]} Bb7 {[%emt 0:01:30]} 22. Kh1 {[%emt 0:01:30]} Qc6 {[%emt 0:03:30]} 23. f3 {[%emt 0:00:30]} Ba6 {[%emt 0:03:30]} 24. Bxa6 {[%emt 0:01:30]} Qxa6 {[%emt 0:00:30]} 25. Qc3 {[%emt 0:05:30]} Rfd8 {[%emt 0:04:30]} 26. Qe3 {[%emt 0:05:30]} Qb6 {[%emt 0:06:30]} 27. Rc2 {[%emt 0:01:30]} Nb7 {[%emt 0:12:21]} 28. Rfc1 {[%emt 0:01:30]} Rd7 {[%emt 0:04:12]} 29. Nc4 {[%emt 0:02:30]} Qd8 {[%emt 0:00:31]} 30. Rd2 {[%emt 0:02:30]} Rxd2 {[%emt 0:00:39]} 31. Nxd2 {[%emt 0:01:30]} e5 {[%emt 0:01:29]} 32. Nc4 {[%emt 0:04:30]} Qd4 {[%emt 0:01:10]} 33. Qb3 {[%emt 0:02:30]} Rd8 {[%emt 0:01:04]} 34. h3 {[%emt 0:00:30]} Rd7 {[%emt 0:00:42]} 35. Qb5 {[%emt 0:01:25]} Qd3 {[%emt 0:02:15]} 36. Qc6 {[%emt 0:01:05]} Re7 {[%emt 0:00:39]} 37. Qc8+ {[%emt 0:02:23]} Qd8 {[%emt 0:00:03]} 38. Qxd8+ {[%emt 0:01:14]} Nxd8 {[%emt 0:00:02]} 39. Rd1 {[%emt 0:00:38]} Nb7 {[%emt 0:00:43]} 40. Na5 {[%emt 0:00:00]} f6 {[%emt 0:00:00]} 41. Nc6 {[%emt 0:03:45]} Rc7 {[%emt 0:02:40]} 42. Nxa7 {[%emt 0:02:30]} Na5 {[%emt 0:02:30]} 43. Nb5 {[%emt 0:01:30]} Rc8 {[%emt 0:01:30]} 44. a4 {[%emt 0:02:30]} Nc4 {[%emt 0:01:30]} 45. b3 {[%emt 0:01:30]} Na5 {[%emt 0:00:30]} 46. Rd3 {[%emt 0:01:30]} Kf8 {[%emt 0:02:30]} 47. Kg1 {[%emt 0:01:30]} Ke7 {[%emt 0:00:30]} 48. Kf2 {[%emt 0:00:30]} Rd8 {[%emt 0:03:30]} 49. Rc3 {[%emt 0:01:30]} Rd2+ {[%emt 0:01:30]} 50. Kg3 {[%emt 0:00:00]} Nb7 {[%emt 0:00:30]} 51. Nc7 {[%emt 0:03:00]} g6 {[%emt 0:06:25]} 52. Nd5+ {[%emt 0:02:30]} Ke6 {[%emt 0:00:52]} 53. b4 {[%emt 0:00:30]} cxb4 {[%emt 0:01:28]} 54. Nxb4 {[%emt 0:01:30]} Rd4 {[%emt 0:02:04]} 55. Rc6+ {[%emt 0:00:30]} Kd7 {[%emt 0:01:32]} 56. Rb6 {[%emt 0:00:30]} Kc7 {[%emt 0:00:42]} 57. Rb5 {[%emt 0:03:30]} Nd6 {[%emt 0:03:43]} 58. Nd5+ {[%emt 0:01:30]} Kc6 {[%emt 0:00:22]} 59. Rb6+ {[%emt 0:01:30]} Kc5 {[%emt 0:00:17]} 60. a5 {[%emt 0:01:30]} f5 {[%emt 0:00:45]} 61. Nc7 {[%emt 0:01:30]} Kc4 {[%emt 0:02:12]} 62. a6 {[%emt 0:02:34]} Kc5 {[%emt 0:01:02]} 63. Rb8 {[%emt 0:02:19]} Ra4 {[%emt 0:00:35]} 64. Ne6+ {[%emt 0:04:19]} Kc6 {[%emt 0:00:16]} 65. Ra8 {[%emt 0:01:52]} Kb6 {[%emt 0:01:00]} 1/2-1/2

[Event "27th CRO-chT Women 2018"]
[Site "Biograd"]
[Date "2018.09.09"]
[Round "3.7"]
[White "Radikovic, Anamarija"]
[Black "Raguz, Ivanka"]
[Result "1-0"]
[ECO "C77"]
[WhiteElo "1906"]
[BlackElo "1706"]
[Annotator "NA"]
[PlyCount "59"]
[EventDate "2018.09.08"]
[EventType "team-tourn"]
[EventCountry "CRO"]
[SourceTitle "playchess.com"]
[Source "ChessBase"]
[SourceQuality "1"]
[TimeControl "40/5400+30:1800+30"]

1. e4 {[%emt 0:00:30]} e5 {[%emt 0:00:30]} 2. Nf3 {[%emt 0:00:00]} Nc6 {[%emt 0:00:00]} 3. Bb5 {[%emt 0:00:00]} a6 {[%emt 0:00:00]} 4. Ba4 {[%emt 0:00:00]} Nf6 {[%emt 0:00:30]} 5. d3 {[%emt 0:00:00]} b5 {[%emt 0:00:30]} 6. Bb3 {[%emt 0:00:30] LiveBook: 1431 Partien} Bc5 {[%emt 0:01:30]} 7. c3 {[%emt 0:02:30]} O-O {[%emt 0:00:30]} 8. O-O {[%emt 0:01:30]} Bb6 {[%emt 0:02:30]} 9. h3 {[%emt 0:03:30]} d6 {[%emt 0:01:30]} 10. Re1 {[%emt 0:00:30]} Be6 {[%emt 0:00:30]} 11. Bc2 {[%emt 0:08:30]} Qd7 {[%emt 0:08:30]} 12. Be3 {[%emt 0:02:30]} Rab8 {[%emt 0:07:30]} 13. a3 {[%emt 0:01:30]} a5 {[%emt 0:01:30]} (13... Bxe3 $11 {bleibt in der Remisbreite.} 14. Rxe3 d5) 14. d4 $16 {[%emt 0:00:30]} exd4 {[%emt 0:10:30]} 15. cxd4 {[%emt 0:00:00]} d5 {[%emt 0:01:30]} 16. exd5 {[%emt 0:16:00]} Bxd5 {[%emt 0:00:30]} 17. Ne5 {[%emt 0:04:30]} Qd6 {[%emt 0:05:30]} 18. Nc3 {[%emt 0:03:30]} Ba7 {[%emt 0:18:30]} 19. Rc1 {[%emt 0:02:30]} Ne7 {[%emt 0:03:30]} 20. Bf4 {[%emt 0:03:30]} Qb6 {[%emt 0:02:30]} 21. Nd7 {[%emt 0:01:30]} Nxd7 {[%emt 0:01:30]} 22. Rxe7 {[%emt 0:00:30]} Be6 {[%emt 0:02:30]} 23. Rxd7 {[%emt 0:15:30]} Bxd7 {[%emt 0:00:30]} 24. Nd5 {[%emt 0:00:30]} Qxd4 {[%emt 0:04:30]} 25. Bxh7+ {[%emt 0:00:00]} Kh8 {[%emt 0:01:30]} 26. Qh5 {[%emt 0:00:00]} Qxf2+ {[%emt 0:01:30]} 27. Kh1 {[%emt 0:00:30]} Rfe8 {[%emt 0:07:40]} 28. Bg6+ {[%emt 0:00:30]} Kg8 {[%emt 0:00:06]} 29. Qh7+ {[%emt 0:00:00]} Kf8 {[%emt 0:00:05]} 30. Qh8# {[%emt 0:00:00]} 1-0

[Event "27th CRO-chT Women 2018"]
[Site "Biograd"]
[Date "2018.09.09"]
[Round "3.8"]
[White "Ivekovic, Zvjezdana"]
[Black "Muha, Magdalena"]
[Result "1-0"]
[ECO "D11"]
[WhiteElo "1703"]
[BlackElo "1839"]
[Annotator "NA"]
[PlyCount "115"]
[EventDate "2018.09.08"]
[EventType "team-tourn"]
[EventCountry "CRO"]
[SourceTitle "playchess.com"]
[Source "ChessBase"]
[SourceQuality "1"]
[TimeControl "40/5400+30:1800+30"]

1. d4 {[%emt 0:00:30]} d5 {[%emt 0:00:30]} 2. c4 {[%emt 0:00:00]} c6 {[%emt 0:00:30]} 3. Nf3 {[%emt 0:00:00]} Nf6 {[%emt 0:00:00]} 4. g3 {[%emt 0:00:30]} dxc4 {[%emt 0:02:00]} 5. Bg2 {[%emt 0:01:30]} Bf5 {[%emt 0:02:30]} 6. O-O {[%emt 0:00:00] LiveBook: 17 Games} e6 {[%emt 0:02:30]} 7. Ne5 {[%emt 0:01:00]} Be7 {[%emt 0:02:30]} 8. Nxc4 {[%emt 0:00:30]} O-O {[%emt 0:01:30]} 9. Nc3 {[%emt 0:01:30]} Nbd7 {[%emt 0:03:30]} 10. e4 {[%emt 0:05:30]} Bg6 {[%emt 0:00:30]} 11. a4 {[%emt 0:01:30] D11: Slav Defence: 3 Nf3 sidelines and 3...Nf6 4 e3 Bg4} b6 $146 {[%emt 0:04:30]} ({Predecessor:} 11... Bb4 12. f3 a5 13. Qe2 Nb6 14. Be3 Nxc4 15. Qxc4 Qb6 16. Bf2 Qa6 17. Qb3 Rfd8 18. Rfd1 Qa7 {½-½ (46) Bozic,M (2456)-Stamenkovic,A (2274) Vrnjacka Banja 2010}) 12. Be3 {[%emt 0:06:30]} Rc8 {[%emt 0:02:30]} 13. Rc1 {[%emt 0:01:30]} Bb4 {[%emt 0:02:30]} 14. f3 {[%emt 0:11:30]} Qe7 {[%emt 0:04:30]} 15. Na2 {[%emt 0:01:30]} b5 {[%emt 0:02:30]} (15... Rfd8 $16 {is a better defense.} 16. Qb3 c5) 16. Nxb4 {[%emt 0:05:30]} Qxb4 {[%emt 0:00:30]} 17. Bd2 {[%emt 0:01:30]} Qe7 {[%emt 0:02:30]} 18. Na5 {[%emt 0:03:30]} c5 {[%emt 0:02:30]} 19. dxc5 {[%emt 0:03:30]} Rxc5 {[%emt 0:00:30]} 20. Bb4 {[%emt 0:01:30]} Rxc1 {[%emt 0:00:30]} 21. Bxe7 {[%emt 0:00:00]} Rxd1 {[%emt 0:00:30]} 22. Rxd1 {[%emt 0:00:00]} Rb8 {[%emt 0:01:30]} 23. Nc6 {[%emt 0:00:30]} Rb7 {[%emt 0:01:30]} 24. axb5 {[%emt 0:02:30]} h6 {[%emt 0:00:30]} 25. Bf1 {[%emt 0:02:30]} Ne5 {[%emt 0:07:30]} 26. Nxe5 {[%emt 0:02:30]} Rxe7 {[%emt 0:00:30]} 27. Nxg6 $18 {[%emt 0:00:00]} (27. Kf2 $142) 27... fxg6 {[%emt 0:00:00]} 28. Bc4 {[%emt 0:01:00]} Kf7 {[%emt 0:00:00]} 29. Rd6 {[%emt 0:00:30]} g5 {[%emt 0:05:30]} 30. e5 {[%emt 0:01:30]} Nd5 {[%emt 0:02:30]} 31. Bxd5 {[%emt 0:01:30]} exd5 {[%emt 0:00:00]} 32. Rxd5 {[%emt 0:00:00]} Ke6 {[%emt 0:00:00]} 33. Rc5 {[%emt 0:00:00]} Kf5 {[%emt 0:00:30]} 34. g4+ {[%emt 0:00:30]} Kf4 {[%emt 0:00:30]} 35. Kf2 {[%emt 0:00:30]} Rd7 {[%emt 0:01:30]} 36. Ke2 {[%emt 0:00:30]} Re7 {[%emt 0:00:30]} 37. Rc4+ {[%emt 0:00:30]} Kxe5 {[%emt 0:00:30]} 38. Re4+ {[%emt 0:00:30]} Kd6 {[%emt 0:00:00]} 39. Rxe7 {[%emt 0:00:00]} Kxe7 {[%emt 0:00:00]} 40. Kd3 {[%emt 0:00:00]} Kd6 {[%emt 0:00:00]} 41. Kd4 {[%emt 0:00:30]} g6 {[%emt 0:00:00]} 42. h3 {[%emt 0:00:30]} h5 {[%emt 0:00:30]} 43. b3 {[%emt 0:01:30]} h4 {[%emt 0:01:30]} 44. b4 {[%emt 0:00:30]} Ke6 {[%emt 0:00:30]} 45. Kc5 {[%emt 0:02:30]} Ke5 {[%emt 0:00:30]} 46. b6 {[%emt 0:00:00]} axb6+ {[%emt 0:00:00]} 47. Kxb6 {[%emt 0:00:00]} Kf4 {[%emt 0:00:00]} 48. Kc5 {[%emt 0:00:00]} Kg3 {[%emt 0:00:00]} 49. b5 {[%emt 0:00:00]} Kxh3 {[%emt 0:00:00]} 50. b6 {[%emt 0:00:30]} Kg2 {[%emt 0:00:30]} 51. b7 {[%emt 0:00:00]} h3 {[%emt 0:00:30]} 52. b8=Q {[%emt 0:00:00]} h2 {[%emt 0:00:00]} 53. Qb2+ {[%emt 0:00:30]} Kg1 {[%emt 0:01:00]} 54. Qc1+ {[%emt 0:01:30]} Kg2 {[%emt 0:00:00]} 55. Qd2+ {[%emt 0:00:30]} Kg1 {[%emt 0:01:00]} 56. Qxg5 {[%emt 0:00:30]} h1=Q {[%emt 0:00:00]} 57. Qc1+ {[%emt 0:00:00]} Kg2 {[%emt 0:00:00]} 58. Qxh1+ {[%emt 0:00:00]} 1-0

[Event "27th CRO-chT Women 2018"]
[Site "Biograd"]
[Date "2018.09.09"]
[Round "3.9"]
[White "Nikolova, Adriana"]
[Black "Repkova, Eva"]
[Result "0-1"]
[ECO "C07"]
[WhiteElo "2281"]
[BlackElo "2288"]
[Annotator "RC"]
[PlyCount "112"]
[EventDate "2018.09.08"]
[EventType "team-tourn"]
[EventCountry "CRO"]
[SourceTitle "playchess.com"]
[Source "ChessBase"]
[SourceQuality "1"]
[TimeControl "40/5400+30:1800+30"]

1. e4 {[%emt 0:00:30]} e6 {[%emt 0:00:30]} 2. d4 {[%emt 0:00:00]} d5 {[%emt 0:00:00]} 3. Nd2 {[%emt 0:00:00]} c5 {[%emt 0:00:00]} 4. Ngf3 {[%emt 0:00:00]} cxd4 {[%emt 0:00:30]} 5. exd5 {[%emt 0:01:00]} Qxd5 {[%emt 0:00:00]} 6. Bc4 {[%emt 0:00:00]} Qd6 {[%emt 0:00:00]} 7. O-O {[%emt 0:00:00]} Nf6 {[%emt 0:00:00]} 8. Nb3 {[%emt 0:00:00]} Nc6 {[%emt 0:00:00]} 9. Nbxd4 {[%emt 0:01:00]} Nxd4 {[%emt 0:00:30]} 10. Nxd4 {[%emt 0:00:00]} Bd7 {[%emt 0:00:00]} 11. Re1 {[%emt 0:02:00]} Qc7 {[%emt 0:04:00]} 12. Qe2 {[%emt 0:01:30]} a6 {[%emt 0:03:30]} 13. Bg5 {[%emt 0:02:30]} O-O-O {[%emt 0:05:30]} 14. a4 {[%emt 0:06:30]} Bd6 {[%emt 0:01:30]} 15. h3 {[%emt 0:07:30]} Kb8 {[%emt 0:03:30]} 16. Red1 {[%emt 0:06:30]} Rc8 {[%emt 0:06:30]} 17. Bb3 {[%emt 0:06:30]} Bh2+ {[%emt 0:08:30]} 18. Kh1 {[%emt 0:00:30]} Bf4 {[%emt 0:00:30]} 19. Bxf4 {[%emt 0:05:30]} Qxf4 {[%emt 0:00:30]} 20. Nf3 {[%emt 0:00:30]} Rc5 {[%emt 0:01:30]} 21. Rd4 {[%emt 0:01:30]} Qc7 {[%emt 0:00:30]} 22. Rc4 {[%emt 0:01:30]} Rxc4 {[%emt 0:01:30]} 23. Bxc4 {[%emt 0:01:30]} Bc6 {[%emt 0:01:30]} 24. Ne5 {[%emt 0:02:30]} Be4 {[%emt 0:00:30]} 25. f4 {[%emt 0:00:30]} g5 {[%emt 0:08:30]} 26. Ng4 {[%emt 0:22:30]} Nh5 {[%emt 0:05:30]} 27. Ra3 {[%emt 0:05:30]} Qxf4 {[%emt 0:01:30]} 28. Kg1 {[%emt 0:02:30]} Rd8 {[%emt 0:04:30]} 29. Bd3 {[%emt 0:04:30]} Qc1+ {[%emt 0:06:30]} 30. Kh2 {[%emt 0:02:35]} Qf4+ {[%emt 0:09:30]} 31. Kg1 {[%emt 0:00:04]} Ng3 {[%emt 0:08:51]} 32. Qe1 {[%emt 0:00:57]} f5 {[%emt 0:04:17]} 33. Nf6 {[%emt 0:05:13]} Bc6 {[%emt 0:06:43]} 34. Rc3 {[%emt 0:03:29]} h5 {[%emt 0:04:24]} 35. Rc4 {[%emt 0:06:44]} Rd4 {[%emt 0:03:12]} 36. Rc5 {[%emt 0:02:14]} Rxa4 {[%emt 0:00:49]} 37. Qe5+ {[%emt 0:01:03]} Ka7 {[%emt 0:01:29]} 38. Qxf4 {[%emt 0:00:49]} gxf4 {[%emt 0:00:21]} 39. Re5 {[%emt 0:00:06]} Bb5 {[%emt 0:00:32]} 40. Bxb5 {[%emt 0:00:00]} Ra1+ {[%emt 0:00:00]} 41. Kf2 {[%emt 0:01:46]} axb5 {[%emt 0:00:52]} 42. Re1 {[%emt 0:00:30]} Ne4+ {[%emt 0:02:30]} 43. Nxe4 {[%emt 0:00:30]} Rxe1 {[%emt 0:00:00]} 44. Kxe1 {[%emt 0:00:00]} fxe4 {[%emt 0:00:00]} 45. h4 {[%emt 0:03:00]} Kb6 {[%emt 0:00:30]} 46. Kf2 {[%emt 0:00:30]} Kc5 {[%emt 0:00:30]} 47. g4 {[%emt 0:00:30]} fxg3+ {[%emt 0:00:00]} 48. Kxg3 {[%emt 0:00:30]} Kd4 {[%emt 0:00:00]} 49. Kf2 {[%emt 0:00:30]} b4 {[%emt 0:00:30]} 50. Ke2 {[%emt 0:00:00]} e3 {[%emt 0:00:30]} 51. Ke1 {[%emt 0:02:00]} b3 {[%emt 0:00:30]} 52. cxb3 {[%emt 0:00:00]} Kd3 {[%emt 0:00:00]} 53. Kd1 {[%emt 0:00:00]} e2+ {[%emt 0:00:00]} 54. Ke1 {[%emt 0:00:00]} b6 {[%emt 0:00:30]} 55. b4 {[%emt 0:00:00]} b5 {[%emt 0:00:30]} 56. b3 {[%emt 0:00:30]} e5 {[%emt 0:00:00]} 0-1